fUSD/lending_fUSD_20241222
["ID","MTS","AMOUNT","RATE_DAILY","PERIOD"]
[346260294,1734844257595,-597.57,0.00019726,2]
[346260295,1734844257605,-500.0,0.00019726,2]
[346260296,1734844257615,-500.0,0.00019726,2]
[346260297,1734844257624,-3263.69,0.00019726,2]
[346260298,1734844257634,-2337.99,0.00019726,2]
[346260299,1734844257643,-808.04,0.00019726,2]
[346260300,1734844257653,-3078.04,0.00019726,2]
[346260301,1734844257663,-500.0,0.00019726,2]
[346260302,1734844257672,-638.82,0.00019726,2]
[346260303,1734844257682,-1454.28,0.00019726,2]
[346260304,1734844257691,-500.0,0.00019726,2]
[346260305,1734844257700,-500.0,0.00019726,2]
[346260306,1734844257710,-520.62441823,0.00019726,2]
[346260307,1734844257721,-1187.93,0.00019726,2]
[346260308,1734844257731,-2210.25,0.00019726,2]
[346260309,1734844257741,-1979.99,0.00019726,2]
[346260310,1734844257753,-500.0,0.00019726,2]
[346260311,1734844257763,-1471.1,0.00019726,2]
[346260312,1734844257773,-5122.1,0.00019726,2]
[346260313,1734844257782,-907.89,0.00019726,2]
[346260314,1734844257792,-1118.29,0.00019726,2]
[346260315,1734844257802,-5386.49,0.00019726,2]
[346260316,1734844257811,-1036.76,0.00019726,2]
[346260317,1734844257821,-500.0,0.00019726,2]
[346260318,1734844257831,-13728.43,0.00019726,2]
[346260319,1734844257841,-846.11,0.00019726,2]
[346260320,1734844257850,-710.65,0.00019726,2]
[346260321,1734844257859,-810.48,0.00019726,2]
[346260322,1734844257869,-1606.33,0.00019726,2]
[346260323,1734844257879,-1268.54,0.00019726,2]
[346260324,1734844257889,-10563.72,0.00019726,2]
[346260325,1734844257898,-500.0,0.00019726,2]
[346260326,1734844257907,-737.51,0.00019726,2]
[346260327,1734844257916,-22990.76,0.00019726,2]
[346260328,1734844257926,-500.0,0.00019726,2]
[346260329,1734844257935,-459.16262775,0.00019726,2]
[346260330,1734844257945,-500.0,0.00019726,2]
[346260331,1734844257954,-2853.02,0.00019726,2]
[346260332,1734844257965,-500.0,0.00019726,2]
[346260333,1734844257975,-502.27,0.00019726,2]
[346260334,1734844257984,-222.316621,0.00019726,2]
[346260335,1734844257994,-500.0,0.00019726,2]
[346260336,1734844258004,-500.0,0.00019726,2]
[346260337,1734844258014,-500.0,0.00019726,2]
[346260338,1734844258023,-5195.81,0.00019726,2]
[346260339,1734844258033,-500.0,0.00019726,2]
[346260340,1734844258042,-500.0,0.00019726,2]
[346260341,1734844258052,-1900.44,0.00019726,2]
[346260342,1734844258061,-2175.77,0.00019726,2]
[346260343,1734844258072,-500.0,0.00019726,2]
[346260344,1734844258082,-4206.8,0.00019726,2]
[346260345,1734844258092,-6887.3,0.00019726,2]
[346260346,1734844258101,-500.0,0.00019726,2]
[346260347,1734844258111,-4347.58,0.00019726,2]
[346260348,1734844258120,-375.75514555,0.00019726,2]
[346260349,1734844258129,-500.0,0.00019726,2]
[346260350,1734844258139,-4312.28,0.00019726,2]
[346260351,1734844258148,-1233.17,0.00019726,2]
[346260352,1734844258158,-543.1,0.00019726,2]
[346260353,1734844258167,-500.0,0.00019726,2]
[346260354,1734844258177,-926.85,0.00019726,2]
[346260355,1734844258186,-5343.64,0.00019726,2]
[346260356,1734844258195,-500.0,0.00019726,2]
[346260357,1734844258206,-557.33,0.00019726,2]
[346260358,1734844258216,-578.16374028,0.00019726,2]
[346260359,1734844258226,-504.93981618,0.00019726,2]
[346260360,1734844258235,-523.31,0.00019726,2]
[346260361,1734844258245,-500.0,0.00019726,2]
[346260362,1734844258254,-500.0,0.00019726,2]
[346260363,1734844258264,-2045.25,0.00019726,2]
[346260364,1734844258273,-597.56,0.00019726,2]
[346260365,1734844258283,-500.0,0.00019726,2]
[346260366,1734844258292,-878.94,0.00019726,2]
[346260367,1734844258301,-500.0,0.00019726,2]
[346260368,1734844258311,-500.0,0.00019726,2]
[346260369,1734844258320,-500.0,0.00019726,2]
[346260370,1734844258329,-647.0,0.00019726,2]
[346260371,1734844258338,-516.58131182,0.00019726,2]
[346260372,1734844258347,-500.0,0.00019726,2]
[346260373,1734844258356,-500.0,0.00019726,2]
[346260374,1734844258367,-14462.59,0.00019726,2]
[346260375,1734844258376,-7991.52,0.00019726,2]
[346260376,1734844258386,-500.0,0.00019726,2]
[346260377,1734844258396,-500.0,0.00019726,2]
[346260378,1734844258406,-500.0,0.00019726,2]
[346260379,1734844258416,-933.66,0.00019726,2]
[346260380,1734844258426,-500.0,0.00019726,2]
[346260381,1734844258435,-500.0,0.00019726,2]
[346260382,1734844258445,-1835.18,0.00019726,2]
[346260383,1734844258454,-1061.14,0.00019726,2]
[346260384,1734844258465,-500.0,0.00019726,2]
[346260385,1734844258474,-500.0,0.00019726,2]
[346260386,1734844258484,-2601.05,0.00019726,2]
[346260387,1734844258493,-500.0,0.00019726,2]
[346260388,1734844258502,-3646.09,0.00019726,2]
[346260389,1734844258512,-500.0,0.00019726,2]
[346260390,1734844258521,-500.0,0.00019726,2]
[346260391,1734844258532,-500.0,0.00019726,2]
[346260392,1734844258541,-500.0,0.00019726,2]
[346260393,1734844258550,-500.0,0.00019726,2]
[346260394,1734844258560,-935.2,0.00019726,2]
[346260395,1734844258570,-500.0,0.00019726,2]
[346260396,1734844258580,-500.0,0.00019726,2]
[346260397,1734844258589,-500.0,0.00019726,2]
[346260398,1734844258599,-3089.84,0.00019726,2]
[346260399,1734844258608,-500.0,0.00019726,2]
[346260400,1734844258619,-824.72,0.00019726,2]
[346260401,1734844258628,-500.0,0.00019726,2]
[346260402,1734844258642,-625.32,0.00019726,2]
[346260403,1734844258654,-500.0,0.00019726,2]
[346260404,1734844258665,-500.0,0.00019726,2]
[346260405,1734844258674,-500.0,0.00019726,2]
[346260406,1734844258683,-500.0,0.00019726,2]
[346260407,1734844258693,-500.0,0.00019726,2]
[346260408,1734844258703,-500.0,0.00019726,2]
[346260409,1734844258714,-500.0,0.00019726,2]
[346260410,1734844258723,-500.0,0.00019726,2]
[346260411,1734844258732,-500.0,0.00019726,2]
[346260412,1734844258742,-500.0,0.00019726,2]
[346260413,1734844258753,-500.0,0.00019726,2]
[346260414,1734844258763,-500.0,0.00019726,2]
[346260415,1734844258773,-1000.0,0.00019734,4]
[346260416,1734844258784,-1000.0,0.00019734,3]
[346260417,1734844258795,-151.0,0.00019772,2]
[346260418,1734844258805,-500.0,0.00019773,2]
[346260419,1734844258814,-7620.63770033,0.0001978,2]
[346260420,1734844258824,-40000.0,0.0001979,2]
[346260421,1734844258834,-5100.0,0.0001979,29]
[346260422,1734844258845,-1056.0,0.00019791,2]
[346260423,1734844258854,-681.09,0.00019798,2]
[346260424,1734844258864,-5743.2886408,0.00019799,7]
[346260425,1734844258873,-519.5,0.00019799,2]
[346260426,1734844258882,-519.5,0.00019799,2]
[346260427,1734844258892,-519.5,0.00019799,2]
[346260428,1734844258901,-519.5,0.00019799,2]
[346260429,1734844258910,-519.5,0.00019799,2]
[346260430,1734844258920,-519.5,0.00019799,2]
[346260431,1734844258929,-519.5,0.00019799,2]
[346260432,1734844258938,-519.5,0.00019799,2]
[346260433,1734844258946,-519.67033082,0.00019799,2]
[346260434,1734844258956,-500.0,0.00019799,2]
[346260435,1734844258966,-681.09,0.00019799,2]
[346260436,1734844258975,-681.09,0.00019799,2]
[346260438,1734844258984,-681.09,0.00019799,2]
[346260439,1734844258993,-681.09,0.00019799,2]
[346260440,1734844259002,-681.09,0.00019799,2]
[346260441,1734844259011,-681.09,0.00019799,2]
[346260442,1734844259020,-681.09,0.00019799,2]
[346260443,1734844259030,-681.09,0.00019799,2]
[346260444,1734844259039,-681.09,0.00019799,2]
[346260445,1734844259048,-681.09,0.00019799,2]
[346260446,1734844259057,-681.09,0.00019799,2]
[346260447,1734844259066,-681.09,0.00019799,2]
[346260448,1734844259075,-681.09,0.00019799,2]
[346260449,1734844259085,-681.09,0.00019799,2]
[346260450,1734844259094,-681.09,0.00019799,2]
[346260451,1734844259103,-681.09,0.00019799,2]
[346260452,1734844259113,-681.15480318,0.00019799,2]
[346260453,1734844259122,-150.0,0.00019799,2]
[346260454,1734844259131,-150.0,0.00019799,2]
[346260455,1734844259140,-150.0,0.00019799,2]
[346260456,1734844259149,-500000.0,0.000198,2]
[346260457,1734844259158,-500000.0,0.000198,2]
[346260458,1734844259168,-500000.0,0.000198,2]
[346260459,1734844259178,-400165.05354005,0.000198,2]
[346260460,1734844259512,-1725.00174895,0.000198,2]
[346260461,1734844259523,-19275.71093084,0.000198,2]
[346260462,1734844259538,-304.33735203,0.000198,2]
[346260463,1734844259549,-27330.05560176,0.000198,2]
[346260464,1734844259560,-3826.79999999,0.000198,2]
[346260465,1734844259583,-4807.22992215,0.000198,2]
[346260466,1734844259595,-42565.81090423,0.000198,2]
[346260467,1734844259604,-53668.19855575,0.000198,2]
[346260468,1734844259615,-112431.5821035,0.000198,2]
[346260469,1734844259626,-196891.99993789,0.000198,2]
[346260470,1734844259638,-4627.87042098,0.000198,2]
[346260471,1734844259648,-979.999985,0.000198,2]
[346260472,1734844259663,-990.09,0.000198,2]
[346260473,1734844259674,-32572.72474308,0.000198,2]
[346260474,1734844259685,-520.23944394,0.000198,2]
[346260475,1734844259696,-999.99912389,0.000198,2]
[346260476,1734844259859,-361.96330818,0.000198,2]
[346260477,1734844259874,-1456.55566933,0.000198,2]
[346260478,1734844259885,-11537.938447,0.000198,2]
[346260479,1734844259895,-2401.18779003,0.000198,2]
[346260480,1734844259906,-2813.81057501,0.000198,2]
[346260481,1734844259917,-18532.95592841,0.000198,2]
[346260482,1734844259929,-6184.95859829,0.000198,2]
[346260483,1734844260092,-258.6209661,0.00018159,2]
[346260484,1734844260103,-190.5108158,0.00019178,2]
[346260485,1734844260112,-524.37594981,0.000198,2]
[346260486,1734844260125,-328.19791157,0.000198,2]
[346260487,1734844260136,-547.92498872,0.000198,2]
[346260488,1734844260148,-5192.7683044,0.000198,2]
[346260489,1734844260159,-660.00000004,0.000198,2]
[346260490,1734844260171,-5336.80532716,0.000198,2]
[346260491,1734844260182,-40437.85288802,0.000198,2]
[346260492,1734844260191,-72255.61074166,0.000198,2]
[346260493,1734844260259,-1921.152,0.000198,2]
[346260494,1734844260271,-1699.58789763,0.000198,2]
[346260495,1734844260312,-32777.98806115,0.000198,2]
[346260496,1734844260323,-11172.37992,0.000198,2]
[346260497,1734844260391,-2204.28446,0.000198,2]
[346260498,1734844260403,-823.8703476,0.000198,2]
[346260509,1734845107536,91446.80929701,0.00013,2]
[346260532,1734845431801,-255.65,0.00016139,2]
[346260533,1734845431810,-334.13,0.00017788,2]
[346260534,1734845431820,-150.0,0.00017803,2]
[346260535,1734845431829,-200.0,0.00017807,2]
[346260536,1734845431837,-163.77713475,0.00017867,2]
[346260537,1734845431848,-35.00286525,0.00017867,2]
[346260538,1734845431858,-250.0,0.00017909,2]
[346260539,1734845431869,-250.0,0.00017948,2]
[346260540,1734845431878,-2675.18,0.00018025,2]
[346260541,1734845431887,-23900.0,0.00018068,2]
[346260542,1734845431896,-1476.69,0.00018093,2]
[346260543,1734845431905,-250.0,0.0001819,2]
[346260544,1734845431914,-180.41,0.00018283,2]
[346260545,1734845431923,-421.59,0.00018325,2]
[346260546,1734845431932,-180.41,0.00018329,2]
[346260547,1734845431941,-180.41,0.00018375,2]
[346260548,1734845431950,-168.98,0.00018401,2]
[346260549,1734845431960,-255.65,0.00018403,2]
[346260550,1734845431969,-356.17571876,0.00018548,2]
[346260551,1734845431978,-356.17571876,0.0001863,2]
[346260552,1734845431987,-356.17571876,0.00018712,2]
[346260553,1734845431996,-356.17571876,0.00018795,2]
[346260554,1734845432005,-425.253,0.0001881,2]
[346260555,1734845432014,-356.17571876,0.00018904,2]
[346260556,1734845432023,-356.17571876,0.00018986,2]
[346260557,1734845432033,-250.0,0.00019014,2]
[346260558,1734845432042,-838.57,0.00019041,2]
[346260559,1734845432053,-436.91,0.00019041,2]
[346260560,1734845432063,-356.17571876,0.00019068,2]
[346260561,1734845432072,-412.88356818,0.00019078,2]
[346260562,1734845432081,-1000.0,0.00019078,2]
[346260563,1734845432091,-5387.47,0.00019078,2]
[346260564,1734845432102,-5606.1567,0.00019078,2]
[346260565,1734845432113,-379.8879,0.00019078,2]
[346260566,1734845432123,-4793.747,0.00019078,2]
[346260567,1734845432133,-310.9369,0.00019078,2]
[346260568,1734845432142,-507.7984,0.00019078,2]
[346260569,1734845432153,-698.4842,0.00019078,2]
[346260570,1734845432162,-150.42,0.000191,2]
[346260571,1734845432174,-1898.0,0.00019137,2]
[346260572,1734845432183,-3770.0,0.00019137,2]
[346260573,1734845432193,-818.0,0.00019137,2]
[346260574,1734845432202,-925.0,0.00019137,2]
[346260575,1734845432211,-1256.0,0.00019137,2]
[346260577,1734845432221,-3682.0,0.00019137,2]
[346260579,1734845432231,-536.0,0.00019137,2]
[346260581,1734845432241,-1265.0,0.00019137,2]
[346260583,1734845432250,-2010.0,0.00019137,2]
[346260585,1734845432259,-702.252,0.00019137,2]
[346260587,1734845432269,-356.17571876,0.00019151,2]
[346260589,1734845432277,-412.88356817,0.00019169,2]
[346260591,1734845432286,-364.77342205,0.00019178,2]
[346260593,1734845432296,-286.27720731,0.00019178,2]
[346260595,1734845432309,-1074.46304,0.00019178,2]
[346260597,1734845432319,-503.60238928,0.00019178,2]
[346260599,1734845432328,-512.9229597,0.00019178,2]
[346260601,1734845432338,-500.0,0.00019178,2]
[346260603,1734845432347,-500.0,0.00019178,2]
[346260605,1734845432357,-153.566144,0.00019178,2]
[346260607,1734845432370,-500.0,0.00019178,2]
[346260609,1734845432380,-1617.422837,0.00019178,2]
[346260610,1734845432390,-500.0,0.00019178,2]
[346260612,1734845432399,-605.06,0.00019178,2]
[346260613,1734845432409,-500.0,0.00019178,2]
[346260614,1734845432418,-500.0,0.00019178,2]
[346260615,1734845432428,-500.0,0.00019178,2]
[346260616,1734845432440,-500.0,0.00019178,2]
[346260617,1734845432449,-500.0,0.00019178,2]
[346260618,1734845432459,-500.0,0.00019178,2]
[346260619,1734845432469,-500.0,0.00019178,2]
[346260620,1734845432478,-500.0,0.00019178,2]
[346260621,1734845432487,-500.0,0.00019178,2]
[346260622,1734845432497,-500.0,0.00019178,2]
[346260623,1734845432506,-500.0,0.00019178,2]
[346260624,1734845432515,-500.0,0.00019178,2]
[346260625,1734845432523,-500.0,0.00019178,2]
[346260626,1734845432532,-500.0,0.00019178,2]
[346260627,1734845432541,-500.0,0.00019178,2]
[346260628,1734845432550,-500.0,0.00019178,2]
[346260629,1734845432559,-571.36,0.00019178,2]
[346260630,1734845432569,-500.0,0.00019178,2]
[346260631,1734845432577,-500.0,0.00019178,2]
[346260632,1734845432586,-500.0,0.00019178,2]
[346260633,1734845432595,-500.0,0.00019178,2]
[346260634,1734845432604,-500.0,0.00019178,2]
[346260635,1734845432615,-500.0,0.00019178,2]
[346260636,1734845432624,-500.0,0.00019178,2]
[346260637,1734845432634,-500.0,0.00019178,2]
[346260638,1734845432643,-500.0,0.00019178,2]
[346260639,1734845432653,-509.83079106,0.00019178,2]
[346260640,1734845432662,-439.43,0.00019178,2]
[346260641,1734845432671,-500.0,0.00019178,2]
[346260642,1734845432681,-500.0,0.00019178,2]
[346260643,1734845432690,-500.30882901,0.00019178,2]
[346260644,1734845432699,-500.0,0.00019178,2]
[346260645,1734845432710,-607.4785513,0.00019178,2]
[346260646,1734845432719,-368.30145322,0.00019178,2]
[346260647,1734845432729,-321.3537482,0.00019178,2]
[346260648,1734845432737,-500.0,0.00019178,2]
[346260649,1734845432747,-500.0,0.00019178,2]
[346260650,1734845432756,-510.12839449,0.00019178,2]
[346260651,1734845432766,-500.0,0.00019178,2]
[346260652,1734845432775,-500.0,0.00019178,2]
[346260653,1734845432785,-500.0,0.00019178,2]
[346260654,1734845432795,-500.0,0.00019178,2]
[346260655,1734845432804,-504.03118447,0.00019178,2]
[346260656,1734845432814,-500.0,0.00019178,2]
[346260657,1734845432823,-500.0,0.00019178,2]
[346260658,1734845432833,-500.0,0.00019178,2]
[346260659,1734845432842,-500.0,0.00019178,2]
[346260660,1734845432851,-500.0,0.00019178,2]
[346260661,1734845432862,-500.0,0.00019178,2]
[346260662,1734845432872,-500.0,0.00019178,2]
[346260663,1734845432881,-500.0,0.00019178,2]
[346260664,1734845432890,-500.0,0.00019178,2]
[346260665,1734845432899,-320.80350865,0.00019178,2]
[346260666,1734845432914,-180.9578288,0.00019178,2]
[346260667,1734845432923,-129.09988423,0.00019178,2]
[346260668,1734845432934,-370.90011577,0.00019178,2]
[346260669,1734845432943,-500.0,0.00019178,2]
[346260670,1734845432952,-501.59981604,0.00019178,2]
[346260671,1734845432962,-410.35431447,0.00019178,2]
[346260672,1734845432973,-95.84120762,0.00019178,2]
[346260673,1734845432983,-515.20058486,0.00019178,2]
[346260674,1734845432992,-503.46887172,0.00019178,2]
[346260675,1734845433001,-500.0,0.00019178,2]
[346260676,1734845433010,-500.0,0.00019178,2]
[346260677,1734845433019,-500.0,0.00019178,2]
[346260678,1734845433028,-500.0,0.00019178,2]
[346260679,1734845433038,-500.0,0.00019178,2]
[346260680,1734845433048,-502.24570536,0.00019178,2]
[346260681,1734845433059,-503.21032959,0.00019178,2]
[346260682,1734845433069,-500.0,0.00019178,2]
[346260683,1734845433078,-500.0,0.00019178,2]
[346260684,1734845433088,-500.0,0.00019178,2]
[346260685,1734845433099,-500.0,0.00019178,2]
[346260686,1734845433108,-500.0,0.00019178,2]
[346260687,1734845433121,-500.0,0.00019178,2]
[346260688,1734845433131,-500.0,0.00019178,2]
[346260689,1734845433140,-500.0,0.00019178,2]
[346260690,1734845433150,-500.0,0.00019178,2]
[346260691,1734845433159,-504.95211766,0.00019178,2]
[346260692,1734845433168,-500.0,0.00019178,2]
[346260693,1734845433178,-500.0,0.00019178,2]
[346260694,1734845433187,-500.0,0.00019178,2]
[346260695,1734845433196,-500.0,0.00019178,2]
[346260696,1734845433205,-500.0,0.00019178,2]
[346260697,1734845433215,-500.0,0.00019178,2]
[346260698,1734845433224,-500.0,0.00019178,2]
[346260699,1734845433233,-500.0,0.00019178,2]
[346260700,1734845433243,-500.0,0.00019178,2]
[346260701,1734845433252,-500.0,0.00019178,2]
[346260702,1734845433261,-500.0,0.00019178,2]
[346260703,1734845433473,-500.0,0.00019178,2]
[346260704,1734845433484,-500.0,0.00019178,2]
[346260705,1734845433494,-500.0,0.00019178,2]
[346260706,1734845433504,-500.0,0.00019178,2]
[346260707,1734845433513,-500.0,0.00019178,2]
[346260708,1734845433523,-25.96565318,0.00019178,2]
[346260709,1734845433548,-150.0,0.00019137,2]
[346260710,1734845433558,-474.03434682,0.00019178,2]
[346260711,1734845433568,-500.0,0.00019178,2]
[346260712,1734845433577,-500.0,0.00019178,2]
[346260713,1734845433586,-450.63825318,0.00019178,2]
[346260714,1734845433598,-49.36174682,0.00019178,2]
[346260715,1734845433607,-494.10566619,0.00019178,2]
[346260716,1734845433618,-274.79755199,0.00019178,2]
[346260717,1734845433633,-225.20244801,0.00019178,2]
[346260718,1734845433643,-55.85986296,0.00019178,2]
[346260719,1734845433667,-527.90341147,0.00019178,2]
[346260720,1734845433676,-426.41027053,0.00019178,2]
[346260721,1734845433685,-46.084318,0.00019178,2]
[346260727,1734845437742,-3886.0,0.00019137,2]
[346260728,1734845437752,-453.915682,0.00019178,2]
[346260729,1734845437762,-500.0,0.00019178,2]
[346260730,1734845437771,-500.0,0.00019178,2]
[346260731,1734845437781,-500.0,0.00019178,2]
[346260732,1734845437791,-500.0,0.00019178,2]
[346260733,1734845437801,-636.63081368,0.00019178,2]
[346260734,1734845437810,-500.0,0.00019178,2]
[346260735,1734845437820,-500.0,0.00019178,2]
[346260736,1734845437830,-608.82633709,0.00019178,2]
[346260737,1734845437839,-500.0,0.00019178,2]
[346260738,1734845437848,-500.0,0.00019178,2]
[346260739,1734845437859,-500.0,0.00019178,2]
[346260740,1734845437869,-500.0,0.00019178,2]
[346260741,1734845437879,-500.0,0.00019178,2]
[346260742,1734845437889,-613.10324471,0.00019178,2]
[346260743,1734845437899,-1007.47,0.00019178,2]
[346260744,1734845437908,-500.0,0.00019178,2]
[346260745,1734845437918,-500.0,0.00019178,2]
[346260746,1734845437928,-500.0,0.00019178,2]
[346260747,1734845437938,-500.0,0.00019178,2]
[346260748,1734845437947,-500.0,0.00019178,2]
[346260749,1734845437957,-504.58326032,0.00019178,2]
[346260750,1734845437967,-502.70907882,0.00019178,2]
[346260751,1734845437976,-500.0,0.00019178,2]
[346260752,1734845437986,-500.0,0.00019178,2]
[346260753,1734845437996,-442.1794169,0.00019178,2]
[346260754,1734845438016,-57.8205831,0.00019178,2]
[346260755,1734845438026,-500.0,0.00019178,2]
[346260756,1734845438036,-500.0,0.00019178,2]
[346260757,1734845438046,-500.0,0.00019178,2]
[346260758,1734845438060,-253.91857756,0.00019178,2]
[346260759,1734845438070,-500.0,0.00019178,2]
[346260760,1734845438079,-500.0,0.00019178,2]
[346260761,1734845438090,-500.0,0.00019178,2]
[346260762,1734845438100,-217.4100002,0.00019178,2]
[346260763,1734845438109,-500.0,0.00019178,2]
[346260764,1734845438119,-500.0,0.00019178,2]
[346260765,1734845438129,-500.0,0.00019178,2]
[346260766,1734845438139,-500.0,0.00019178,2]
[346260767,1734845438148,-500.0,0.00019178,2]
[346260768,1734845438158,-500.0,0.00019178,2]
[346260769,1734845438168,-500.0,0.00019178,2]
[346260770,1734845438177,-653.66,0.00019178,2]
[346260771,1734845438186,-500.0,0.00019178,2]
[346260772,1734845438196,-1192.78,0.00019178,2]
[346260773,1734845438205,-483.97683953,0.00019178,2]
[346260774,1734845438214,-1479.34,0.00019178,2]
[346260776,1734845438224,-500.0,0.00019178,2]
[346260777,1734845438232,-726.03,0.00019178,2]
[346260778,1734845438241,-500.0,0.00019178,2]
[346260779,1734845438250,-500.0,0.00019178,2]
[346260780,1734845438259,-500.0,0.00019178,2]
[346260781,1734845438268,-500.0,0.00019178,2]
[346260782,1734845438278,-500.0,0.00019178,2]
[346260783,1734845438287,-500.0,0.00019178,2]
[346260784,1734845438296,-500.0,0.00019178,2]
[346260785,1734845438305,-500.0,0.00019178,2]
[346260786,1734845438315,-500.0,0.00019178,2]
[346260787,1734845438324,-500.0,0.00019178,2]
[346260788,1734845438333,-500.0,0.00019178,2]
[346260789,1734845438343,-500.0,0.00019178,2]
[346260790,1734845438352,-500.0,0.00019178,2]
[346260791,1734845438362,-500.0,0.00019178,2]
[346260792,1734845438373,-500.0,0.00019178,2]
[346260793,1734845438382,-500.0,0.00019178,2]
[346260794,1734845438392,-500.0,0.00019178,2]
[346260795,1734845438402,-589.09,0.00019178,2]
[346260796,1734845438411,-0.78027859,0.00019178,2]
[346260797,1734845438427,-499.21972141,0.00019178,2]
[346260798,1734845438436,-9.94817221,0.00019178,2]
[346260799,1734845438451,-490.05182779,0.00019178,2]
[346260800,1734845438460,-500.0,0.00019178,2]
[346260801,1734845438469,-500.0,0.00019178,2]
[346260802,1734845438478,-500.0,0.00019178,2]
[346260803,1734845438487,-500.0,0.00019178,2]
[346260804,1734845438496,-277.32930449,0.00019178,2]
[346260805,1734845438507,-222.67069551,0.00019178,2]
[346260806,1734845438516,-500.0,0.00019178,2]
[346260807,1734845438525,-500.0,0.00019178,2]
[346260808,1734845438535,-500.0,0.00019178,2]
[346260809,1734845438544,-500.0,0.00019178,2]
[346260810,1734845438553,-500.0,0.00019178,2]
[346260811,1734845438563,-500.0,0.00019178,2]
[346260812,1734845438572,-500.0,0.00019178,2]
[346260813,1734845438581,-500.0,0.00019178,2]
[346260814,1734845438590,-500.0,0.00019178,2]
[346260815,1734845438599,-1099.24,0.00019178,2]
[346260816,1734845438607,-500.0,0.00019178,2]
[346260817,1734845438616,-500.0,0.00019178,2]
[346260818,1734845438625,-500.0,0.00019178,2]
[346260819,1734845438634,-354.39930449,0.00019178,2]
[346260820,1734845438646,-145.60069551,0.00019178,2]
[346260821,1734845438655,-500.0,0.00019178,2]
[346260822,1734845438664,-500.0,0.00019178,2]
[346260823,1734845438673,-500.0,0.00019178,2]
[346260824,1734845438682,-421.61909015,0.00019178,2]
[346260825,1734845438697,-257.44090985,0.00019178,2]
[346260826,1734845438707,-500.0,0.00019178,2]
[346260827,1734845438716,-1120.62,0.00019178,2]
[346260828,1734845438725,-500.0,0.00019178,2]
[346260829,1734845438734,-629.72,0.00019178,2]
[346260830,1734845438743,-500.0,0.00019178,2]
[346260831,1734845438752,-500.0,0.00019178,2]
[346260832,1734845438761,-500.0,0.00019178,2]
[346260833,1734845438771,-500.0,0.00019178,2]
[346260834,1734845438780,-500.0,0.00019178,2]
[346260835,1734845438790,-500.0,0.00019178,2]
[346260836,1734845438799,-500.0,0.00019178,2]
[346260837,1734845438808,-500.0,0.00019178,2]
[346260838,1734845438817,-651.91,0.00019178,2]
[346260839,1734845438826,-500.0,0.00019178,2]
[346260840,1734845438835,-504.33634552,0.00019178,2]
[346260841,1734845438843,-97.49435011,0.00019178,2]
[346260845,1734845439897,-402.50564989,0.00019178,2]
[346260846,1734845439907,-500.0,0.00019178,2]
[346260847,1734845439916,-115.60074615,0.00019178,2]
[346260848,1734845439928,-393.47495595,0.00019178,2]
[346260849,1734845439939,-268.51004405,0.00019178,2]
[346260850,1734845440031,-231.48995595,0.00019178,2]
[346260851,1734845440041,-500.0,0.00019178,2]
[346260852,1734845440050,-1709.98,0.00019178,2]
[346260853,1734845440060,-500.0,0.00019178,2]